{"text_format":"1","workbook":"xlsx","n_sheets":8,"sheets":["8 Man Entries","8 Man Bracket","Round 1","Semis","Conso Rd 1","Conso Semis","Conso Finals","Finals"],"not_rendered":{"charts":0,"images":1,"macros":1,"external_links":0,"defined_names":0,"comments":0,"pivot_tables":0},"unopened":[],"bounds":{"document_bytes":16777216,"sheet_cells":100000,"rows_first":2000,"rows_last":500,"rows_between":2000,"halvings":0,"cell_chars":16384,"cell_head_chars":4096},"cells_cut":0,"cells_raw":0,"read":"whole","date_system":"1900"}

{"sheet":"8 Man Entries","index":0,"n_rows":9,"n_cols":5,"rows_kept":9,"cut":false,"hidden":false,"merged":[]}
["Tournament Name",null,null,"Entries "]
["Tournament Name",null,null,"Wrestler 1 - Team","# 1 Seed"]
["Group #",null,null,"Wrestler 2 - Team","# 2 Seed"]
[165,null,null,"Wrestler 3 - Team","# 3 Seed"]
["Mat #",null,null,"Wrestler 4 - Team","# 4 Seed"]
["Mat # 1",null,null,"Wrestler 5 - Team"]
[null,null,null,"Wrestler 6 - Team"]
[null,null,null,"Wrestler 7 - Team"]
[null,null,null,"Wrestler 8 - Team"]

{"sheet":"8 Man Bracket","index":1,"n_rows":25,"n_cols":6,"rows_kept":25,"cut":false,"hidden":false,"merged":[]}
[{"$f":"'8 Man Entries'!$A$2","v":"Tournament Name"},null,null,null,{"$f":"'8 Man Entries'!$A$4","v":165},{"$f":"'8 Man Entries'!$A$6","v":"Mat # 1"}]
[]
[{"$f":"'8 Man Entries'!$D$2","v":"Wrestler 1 - Team"}]
[]
[{"$f":"'8 Man Entries'!$D$9","v":"Wrestler 8 - Team"}]
[]
[{"$f":"'8 Man Entries'!$D$6","v":"Wrestler 5 - Team"}]
[]
[{"$f":"'8 Man Entries'!$D$5","v":"Wrestler 4 - Team"}]
[]
[{"$f":"'8 Man Entries'!$D$4","v":"Wrestler 3 - Team"},null,null,null,null,"Champion"]
[]
[{"$f":"'8 Man Entries'!$D$7","v":"Wrestler 6 - Team"}]
[]
[{"$f":"'8 Man Entries'!$D$8","v":"Wrestler 7 - Team"}]
[]
[{"$f":"'8 Man Entries'!$D$3","v":"Wrestler 2 - Team"}]
[]
[]
[]
[]
[]
[]
[]
[null,null,null,null,null,"Third"]

{"sheet":"Round 1","index":2,"n_rows":56,"n_cols":9,"rows_kept":56,"cut":false,"hidden":false,"merged":[]}
[null,"Round 1 - Match 1",{"$f":"'8 Man Entries'!$A$4","v":165}]
[null,"Wrestlers","1st Period",null,"2nd Period",null,"3rd Period","OT","Final"]
[null,null,null,"T",null,"T"]
["R",{"$f":"'8 Man Bracket'!$A$3","v":"Wrestler 1 - Team"},null,"B",null,"B"]
[null,null,null,"N",null,"N"]
["G",null,null,"="]
[]
[null,null,null,"T",null,"T"]
["R",{"$f":"'8 Man Bracket'!$A$5","v":"Wrestler 8 - Team"},null,"B",null,"B"]
[null,null,null,"N",null,"N"]
["G",null,null,"="]
[]
[]
[]
[]
[null,"Round 1 - Match 2",{"$f":"'8 Man Entries'!$A$4","v":165}]
[null,"Wrestlers","1st Period",null,"2nd Period",null,"3rd Period","OT","Final"]
[null,null,null,"T",null,"T"]
["R",{"$f":"'8 Man Bracket'!$A$7","v":"Wrestler 5 - Team"},null,"B",null,"B"]
[null,null,null,"N",null,"N"]
["G",null,null,"="]
[]
[null,null,null,"T",null,"T"]
["R",{"$f":"'8 Man Bracket'!$A$9","v":"Wrestler 4 - Team"},null,"B",null,"B"]
[null,null,null,"N",null,"N"]
["G",null,null,"="]
[]
[]
[]
[]
[null,"Round 1 - Match 3",{"$f":"'8 Man Entries'!$A$4","v":165}]
[null,"Wrestlers","1st Period",null,"2nd Period",null,"3rd Period","OT","Final"]
[null,null,null,"T",null,"T"]
["R",{"$f":"'8 Man Bracket'!$A$11","v":"Wrestler 3 - Team"},null,"B",null,"B"]
[null,null,null,"N",null,"N"]
["G",null,null,"="]
[]
[null,null,null,"T",null,"T"]
["R",{"$f":"'8 Man Bracket'!$A$13","v":"Wrestler 6 - Team"},null,"B",null,"B"]
[null,null,null,"N",null,"N"]
["G",null,null,"="]
[]
[]
[]
[]
[null,"Round 1 - Match 4",{"$f":"'8 Man Entries'!$A$4","v":165}]
[null,"Wrestlers","1st Period",null,"2nd Period",null,"3rd Period","OT","Final"]
[null,null,null,"T",null,"T"]
["R",{"$f":"'8 Man Bracket'!$A$15","v":"Wrestler 7 - Team"},null,"B",null,"B"]
[null,null,null,"N",null,"N"]
["G",null,null,"="]
[]
[null,null,null,"T",null,"T"]
["R",{"$f":"'8 Man Bracket'!$A$17","v":"Wrestler 2 - Team"},null,"B",null,"B"]
[null,null,null,"N",null,"N"]
["G",null,null,"="]

{"sheet":"Semis","index":3,"n_rows":26,"n_cols":9,"rows_kept":26,"cut":false,"hidden":false,"merged":[]}
[null,"Championship Semifinal - Match 1",{"$f":"'8 Man Entries'!$A$4","v":165}]
[null,"Wrestlers","1st Period",null,"2nd Period",null,"3rd Period","OT","Final"]
[null,null,null,"T",null,"T"]
["R",{"$f":"'8 Man Bracket'!$C$4","v":0},null,"B",null,"B"]
[null,null,null,"N",null,"N"]
["G",null,null,"="]
[]
[null,null,null,"T",null,"T"]
["R",{"$f":"'8 Man Bracket'!$C$8","v":0},null,"B",null,"B"]
[null,null,null,"N",null,"N"]
["G",null,null,"="]
[]
[]
[]
[]
[null,"Championship Semifinal - Match 2",{"$f":"'8 Man Entries'!$A$4","v":165}]
[null,"Wrestlers","1st Period",null,"2nd Period",null,"3rd Period","OT","Final"]
[null,null,null,"T",null,"T"]
["R",{"$f":"'8 Man Bracket'!$C$12","v":0},null,"B",null,"B"]
[null,null,null,"N",null,"N"]
["G",null,null,"="]
[]
[null,null,null,"T",null,"T"]
["R",{"$f":"'8 Man Bracket'!$C$16","v":0},null,"B",null,"B"]
[null,null,null,"N",null,"N"]
["G",null,null,"="]

{"sheet":"Conso Rd 1","index":4,"n_rows":25,"n_cols":9,"rows_kept":25,"cut":false,"hidden":false,"merged":[]}
[null,"Consolation  Round 1 - Match 1",{"$f":"'8 Man Entries'!$A$4","v":165}]
[null,"Wrestlers","1st Period",null,"2nd Period",null,"3rd Period","OT","Final"]
[null,null,null,"T",null,"T"]
["R",{"$f":"'8 Man Bracket'!$A$20","v":0},null,"B",null,"B"]
[null,null,null,"N",null,"N"]
["G",null,null,"="]
[]
[null,null,null,"T",null,"T"]
["R",{"$f":"'8 Man Bracket'!$A$22","v":0},null,"B",null,"B"]
[null,null,null,"N",null,"N"]
["G",null,null,"="]
[]
[]
[]
[null,"Consolation - Round 1 - Match 2",{"$f":"'8 Man Entries'!$A$4","v":165}]
[null,"Wrestlers","1st Period",null,"2nd Period",null,"3rd Period","OT","Final"]
[null,null,null,"T",null,"T"]
["R",{"$f":"'8 Man Bracket'!$A$24","v":0},null,"B",null,"B"]
[null,null,null,"N",null,"N"]
["G",null,null,"="]
[]
[null,null,null,"T",null,"T"]
["R",{"$f":"'8 Man Bracket'!$A$26","v":0},null,"B",null,"B"]
[null,null,null,"N",null,"N"]
["G",null,null,"="]

{"sheet":"Conso Semis","index":5,"n_rows":25,"n_cols":9,"rows_kept":25,"cut":false,"hidden":false,"merged":[]}
[null,"Consolation  Semifinals - Match 1",{"$f":"'8 Man Entries'!$A$4","v":165}]
[null,"Wrestlers","1st Period",null,"2nd Period",null,"3rd Period","OT","Final"]
[null,null,null,"T",null,"T"]
["R",{"$f":"'8 Man Bracket'!$C$21","v":0},null,"B",null,"B"]
[null,null,null,"N",null,"N"]
["G",null,null,"="]
[]
[null,null,null,"T",null,"T"]
["R",{"$f":"'8 Man Bracket'!$C$23","v":0},null,"B",null,"B"]
[null,null,null,"N",null,"N"]
["G",null,null,"="]
[]
[]
[]
[null,"Consolation - Semifinals - Match 2",{"$f":"'8 Man Entries'!$A$4","v":165}]
[null,"Wrestlers","1st Period",null,"2nd Period",null,"3rd Period","OT","Final"]
[null,null,null,"T",null,"T"]
["R",{"$f":"'8 Man Bracket'!$C$25","v":0},null,"B",null,"B"]
[null,null,null,"N",null,"N"]
["G",null,null,"="]
[]
[null,null,null,"T",null,"T"]
["R",{"$f":"'8 Man Bracket'!$C$27","v":0},null,"B",null,"B"]
[null,null,null,"N",null,"N"]
["G",null,null,"="]

{"sheet":"Conso Finals","index":6,"n_rows":11,"n_cols":9,"rows_kept":11,"cut":false,"hidden":false,"merged":[]}
[null,"Consolation Finals",{"$f":"'8 Man Entries'!$A$4","v":165}]
[null,"Wrestlers","1st Period",null,"2nd Period",null,"3rd Period","OT","Final"]
[null,null,null,"T",null,"T"]
["R",{"$f":"'8 Man Bracket'!$E$22","v":0},null,"B",null,"B"]
[null,null,null,"N",null,"N"]
["G",null,null,"="]
[]
[null,null,null,"T",null,"T"]
["R",{"$f":"'8 Man Bracket'!$E$26","v":0},null,"B",null,"B"]
[null,null,null,"N",null,"N"]
["G",null,null,"="]

{"sheet":"Finals","index":7,"n_rows":11,"n_cols":9,"rows_kept":11,"cut":false,"hidden":false,"merged":[]}
[null,"Finals",{"$f":"'8 Man Entries'!$A$4","v":165}]
[null,"Wrestlers","1st Period",null,"2nd Period",null,"3rd Period","OT","Final"]
[null,null,null,"T",null,"T"]
["R",{"$f":"'8 Man Bracket'!$E$6","v":0},null,"B",null,"B"]
[null,null,null,"N",null,"N"]
["G",null,null,"="]
[]
[null,null,null,"T",null,"T"]
["R",{"$f":"'8 Man Bracket'!$E$14","v":0},null,"B",null,"B"]
[null,null,null,"N",null,"N"]
["G",null,null,"="]